bitfinex-derivatives/quotes_BNBF0:USTF0_20250116
["timestamp","ask_amount","ask_price","bid_price","bid_amount"]
[1737032568410,0.27940375,715.81,714.32,0.85325061]
[1737032568605,0.27940375,715.81,714.33,0.25698353]
[1737032568808,0.27940375,715.81,714.32,0.59626708]
[1737032568809,0.27940375,715.81,714.34,0.25698353]
[1737032569005,0.27940375,715.81,714.35,0.25698353]
[1737032569209,0.27940375,715.81,714.36,0.25698353]
[1737032569407,0.27940375,715.81,714.37,0.25698353]
[1737032569710,0.27940375,715.81,714.38,0.25698353]
[1737032569911,0.27940375,715.81,714.39,0.25700121]
[1737032570111,0.27940375,715.81,714.4,0.25700121]
[1737032570312,0.27940375,715.81,714.41,0.25700121]
[1737032570511,0.27940375,715.81,714.42,0.25700121]
[1737032570710,0.27940375,715.81,714.43,0.25700121]
[1737032570911,0.27940375,715.81,714.44,0.25700121]
[1737032571111,0.27940375,715.81,714.45,0.25700121]
[1737032571311,0.27940375,715.81,714.46,0.25700121]
[1737032571507,0.27940375,715.81,714.17,0.59632273]
[1737032571508,0.27940375,715.81,714.47,0.25700121]
[1737032571713,0.27940375,715.81,714.48,0.25700121]
[1737032572013,0.27940375,715.81,714.49,0.25700121]
[1737032572213,0.27940375,715.81,714.5,0.25700121]
[1737032572507,0.27940375,715.81,714.51,0.25700121]
[1737032572713,0.27940375,715.81,714.52,0.25700086]
[1737032572913,0.27940375,715.81,714.53,0.25700086]
[1737032573114,0.27940375,715.81,714.54,0.25700086]
[1737032573314,0.27940375,715.81,714.55,0.25700086]
[1737032573507,0.27940375,715.81,714.19,0.25700086]
[1737032573707,0.27940375,715.81,714.21,1.0456499]
[1737032573913,0.27940375,715.81,714.22,0.85319959]
[1737032574114,0.27940375,715.81,714.23,0.25700086]
[1737032574314,0.27940375,715.81,714.24,0.25700086]
[1737032574513,0.27940375,715.81,714.25,0.25700086]
[1737032574718,0.27940375,715.81,714.26,0.25700086]
[1737032575014,0.27940375,715.81,714.27,0.53700702]
[1737032575217,0.27940375,715.81,714.28,0.85319959]
[1737032575410,0.27940375,715.81,714.27,0.28000616]
[1737032575411,0.27940375,715.81,714.29,0.85324161]
[1737032575609,0.27940375,715.81,714.3,0.85324161]
[1737032575809,0.27940375,715.81,714.31,0.85324161]
[1737032576013,0.27940375,715.81,714.27,0.28000616]
[1737032576214,0.27940375,715.81,714.28,0.85323632]
[1737032576416,0.27940375,715.81,714.29,0.25700802]
[1737032576614,0.27940375,715.81,714.3,0.25700802]
[1737032576814,0.27940375,715.81,714.31,0.25700802]
[1737032577014,0.27940375,715.81,714.32,0.25700802]
[1737032577215,0.27940375,715.81,714.33,0.25700802]
[1737032577410,0.27940375,715.81,714.34,0.25700802]
[1737032577615,0.27940375,715.81,714.35,0.25700802]
[1737032577816,0.27940375,715.81,714.36,0.25700802]
[1737032578010,0.27940375,715.81,714.37,0.25700802]
[1737032578216,0.27940375,715.81,714.37,0.27996696]
[1737032579114,0.27940375,715.81,714.38,0.25695336]
[1737032579714,0.27940375,715.81,714.39,0.25695336]
[1737032579915,0.27940375,715.81,714.4,0.25695336]
[1737032580112,0.27940375,715.81,714.41,0.25695336]
[1737032580317,0.27940375,715.81,714.42,0.25695336]
[1737032580517,0.27940375,715.81,714.43,0.25695336]
[1737032580715,0.27940375,715.81,714.39,0.25695336]
[1737032580919,0.27940375,715.81,714.4,0.25695336]
[1737032581120,0.27940375,715.81,714.41,0.25695336]
[1737032581419,0.27940375,715.81,714.42,0.25695336]
[1737032581620,0.27940375,715.81,714.43,0.25695336]
[1737032581820,0.27940375,715.81,714.44,0.25695336]
[1737032582014,0.27940375,715.81,714.38,0.59587862]
[1737032582015,0.27940375,715.81,714.45,0.25695336]
[1737032582215,0.27940375,715.81,714.46,0.25695336]
[1737032582419,0.27940375,715.81,714.47,0.25695336]
[1737032582616,0.27940375,715.81,714.38,0.25695336]
[1737032582818,0.27940375,715.81,714.39,0.25695336]
[1737032583020,0.27940375,715.81,714.4,0.25695336]
[1737032583319,0.27940375,715.81,714.37,0.27996696]
[1737032583521,0.27940375,715.81,714.38,0.25697853]
[1737032585417,0.27940375,715.81,714.39,0.25697582]
[1737032585619,0.27940375,715.81,714.4,0.25697582]
[1737032585819,0.27940375,715.81,714.41,0.25697413]
[1737032586019,0.27940375,715.81,714.42,0.25697413]
[1737032586316,0.27940375,715.81,714.43,0.25697413]
[1737032586519,0.27940375,715.81,714.44,0.25697413]
[1737032586715,0.27940375,715.81,714.45,0.25697413]
[1737032586921,0.27940375,715.81,714.46,0.25697413]
[1737032587120,0.27940375,715.81,714.47,0.25697413]
[1737032587317,0.27940375,715.81,714.48,0.25697413]
[1737032587621,0.27940375,715.81,714.49,0.25697413]
[1737032587822,0.27940375,715.81,714.5,0.25697413]
[1737032588022,0.27940375,715.81,714.37,0.27996696]
[1737032588223,0.27940375,715.81,714.38,0.25697669]
[1737032589625,0.27940375,715.81,714.37,0.27996696]
[1737032589824,0.27940375,715.81,714.38,0.25697278]
[1737032591420,0.27940375,715.81,714.38,0.94697278]
[1737032591624,0.27940375,715.81,714.39,0.25697278]
[1737032591827,0.27940375,715.81,714.38,0.69]
[1737032593721,0.27940375,715.81,714.39,0.25704924]
[1737032595625,0.27940375,715.81,714.38,0.69]
[1737032599537,0.27940375,715.81,714.39,0.25701528]
[1737032599740,0.27940375,715.81,714.39,0.25701476]
[1737032601432,0.27940375,715.81,714.4,1.03966494]
[1737032601833,0.27940375,715.81,714.41,0.25701201]
[1737032602539,1.04499239,715.8,714.46,1.03966494]
[1737032602740,1.04499239,715.8,714.47,0.25701201]
[1737032603839,0.27940375,715.81,714.56,1.03966494]
[1737032604039,0.27940375,715.81,714.57,0.25701201]
[1737032604439,0.27940375,715.81,714.58,0.25696478]
[1737032604634,0.27940375,715.81,714.59,0.25696478]
[1737032604833,0.27940375,715.81,714.6,0.25696478]
[1737032605039,0.27940375,715.81,714.61,0.25696478]
[1737032605240,0.27940375,715.81,714.62,0.25696478]
[1737032605535,0.27940375,715.81,714.63,0.25696478]
[1737032605742,0.27940375,715.81,714.64,0.25696478]
[1737032605942,0.27940375,715.81,714.38,0.69]
[1737032605943,0.27940375,715.81,714.65,0.25696478]
[1737032606142,0.27940375,715.81,714.58,1.03966494]
[1737032606342,0.27940375,715.81,714.59,0.25694899]
[1737032606938,0.27940375,715.81,714.48,1.03966494]
[1737032607140,0.27940375,715.81,714.49,0.25694623]
[1737032607441,0.27940375,715.81,714.48,1.03966494]
[1737032608042,0.27940375,715.81,714.49,1.29658043]
[1737032608239,0.27940375,715.81,714.49,1.03966494]
[1737032608438,0.27940375,715.81,714.5,0.25692015]
[1737032609140,0.27940375,715.81,714.5,0.85249156]
[1737032609337,0.27940375,715.81,714.63,1.03966494]
[1737032609642,0.27940375,715.81,714.64,0.25692015]
[1737032610241,0.27940375,715.81,714.37,0.27996696]
[1737032610242,0.27940375,715.81,714.65,1.03966494]
[1737032610441,0.27940375,715.81,714.66,0.25692044]
[1737032611242,0.27940375,715.81,714.59,1.03966494]
[1737032611646,0.27940375,715.81,714.6,0.25692272]
[1737032612440,0.27940375,715.81,714.61,0.25692272]
[1737032612644,0.27940375,715.81,714.62,0.25692272]
[1737032612844,0.27940375,715.81,714.41,1.03966494]
[1737032613041,0.27940375,715.81,714.42,0.25691407]
[1737032613449,0.27940375,715.81,714.43,1.03966494]
[1737032613646,0.27940375,715.81,714.44,0.25691407]
[1737032614444,0.27940375,715.81,714.45,0.25691407]
[1737032614648,0.27940375,715.81,714.46,0.25691407]
[1737032614842,0.27940375,715.81,714.47,0.25691407]
[1737032615042,1.04499239,716.47,714.48,0.25691407]
[1737032615243,0.27915416,716.45,714.49,0.25691407]
[1737032615445,0.27915416,716.45,714.5,0.25691407]
[1737032615650,0.27915416,716.45,714.51,0.25691407]
[1737032615850,0.27915416,716.45,714.52,0.25691407]
[1737032616044,1.04499239,716.39,714.61,1.03966494]
[1737032616547,1.04499239,716.39,714.62,0.85203005]
[1737032616742,1.04499239,716.39,714.63,0.25687645]
[1737032616948,1.04499239,716.39,714.64,0.25687645]
[1737032617149,1.04499239,716.39,714.65,0.25687645]
[1737032617349,1.04499239,716.32,714.66,1.29654139]
[1737032617651,1.04499239,716.32,714.67,0.25687645]
[1737032618451,0.27915416,716.45,714.68,0.25684831]
[1737032618647,0.27915416,716.45,714.53,1.03966494]
[1737032618648,0.27915416,716.45,714.69,0.25684831]
[1737032618847,0.27915416,716.45,714.7,0.25684831]
[1737032619048,0.27915416,716.45,714.71,0.25684831]
[1737032619244,0.27915416,716.45,714.72,0.25684831]
[1737032619445,0.27915416,716.45,714.73,0.25684831]
[1737032619644,0.27915416,716.45,714.74,0.25684831]
[1737032619847,0.27915416,716.45,714.75,0.25684831]
[1737032620047,0.27915416,716.45,714.76,0.25684831]
[1737032620251,0.27915416,716.45,714.77,0.25684831]
[1737032620450,0.27915416,716.45,714.78,0.25684831]
[1737032620645,0.27915416,716.45,714.79,0.25684831]
[1737032620850,0.27915416,716.45,714.8,0.25684831]
[1737032621252,0.27915416,716.45,714.81,0.25684831]
[1737032621554,0.27915416,716.45,714.49,0.865]
[1737032621754,0.27915416,716.45,714.5,0.25685416]
[1737032622448,0.27915416,716.45,714.5,0.85188389]
[1737032622652,0.27915416,716.45,714.51,0.25685416]
[1737032622953,0.27915416,716.45,714.49,0.865]
[1737032622954,0.27915416,716.45,714.52,0.25685416]
[1737032623253,0.27915416,716.45,714.53,0.25685416]
[1737032623553,0.27915416,716.45,714.54,0.25685416]
[1737032623746,0.27915416,716.45,714.55,0.2568754]
[1737032624047,0.27915416,716.45,714.56,0.2568754]
[1737032624253,0.27915416,716.45,714.57,0.2568754]
[1737032624452,0.27915416,716.45,714.52,0.2568754]
[1737032624651,0.27915416,716.45,714.53,0.2568754]
[1737032624852,0.27915416,716.45,714.54,0.2568754]
[1737032625046,0.27915416,716.45,714.52,0.2568754]
[1737032625245,0.27915416,716.45,714.53,0.2568754]
[1737032625553,0.27915416,716.45,714.54,0.2568754]
[1737032625847,0.27915416,716.45,714.55,0.2568754]
[1737032626153,0.27915416,716.45,714.56,0.2568754]
[1737032626354,0.27915416,716.45,714.57,0.2568754]
[1737032626551,0.27915416,716.45,714.49,1.90466494]
[1737032626751,1.04499239,716.43,714.5,0.25690015]
[1737032627654,0.27915416,716.45,714.5,0.25690015]
[1737032628956,1.32414655,716.45,714.5,0.25690015]
[1737032629157,1.32414655,716.45,714.49,0.865]
[1737032629353,1.32414655,716.45,714.5,0.25698271]
[1737032629554,1.32414655,716.45,714.49,0.865]
[1737032629956,1.04499239,716.16,714.49,0.865]
[1737032630151,1.04499239,716.16,714.5,0.25698525]
[1737032630351,1.04499239,716.16,714.49,0.865]
[1737032631359,1.04499239,716.28,714.49,0.865]
[1737032632454,1.04499239,716.25,714.49,0.865]
[1737032634956,1.04499239,716.25,714.5,0.25700002]
[1737032635355,1.04499239,716.25,714.37,0.27996696]
[1737032635356,1.04499239,716.08,714.51,0.25700002]
[1737032635560,1.04499239,716.08,714.52,0.25700002]
[1737032635758,1.04499239,716.08,714.37,0.27996696]
[1737032635759,1.04499239,716.08,714.53,0.25700002]
[1737032636061,1.04499239,716.08,714.54,0.25700002]
[1737032636258,1.04499239,716.07,714.55,0.25700002]
[1737032636464,1.04499239,716.07,714.56,0.25700002]
[1737032636664,1.04499239,716.07,714.37,0.27996696]
[1737032636964,1.04499239,716.07,714.38,0.25699978]
[1737032637163,1.04499239,716.23,714.38,0.25699978]
[1737032637363,1.04499239,716.23,714.39,0.2570177]
[1737032637563,1.04499239,716.23,714.37,0.27996696]
[1737032637764,1.04499239,716.23,714.38,0.25702332]
[1737032638165,1.04499239,716.23,714.37,0.27996696]
[1737032638567,1.04499239,716.19,714.37,0.27996696]
[1737032639167,0.2792633,716.17,714.37,0.27996696]
[1737032639766,0.2792633,716.17,714.38,0.25703964]
[1737032639966,0.2792633,716.17,714.37,1.37396696]
[1737032640269,1.04499239,716.16,714.38,0.25703319]
[1737032640764,1.04499239,716.16,714.37,1.37396696]
[1737032641070,1.32425569,716.17,714.37,1.37396696]
[1737032641369,1.32425569,716.17,714.38,0.2570501]
[1737032641764,1.32425569,716.17,714.37,1.37396696]
[1737032642063,1.04499239,716.1,714.37,1.37396696]
[1737032643269,1.04499239,716.09,714.37,1.37396696]
[1737032644066,1.04499239,716.02,714.37,1.37396696]
[1737032645070,1.04499239,715.9,714.37,1.37396696]
[1737032645269,1.04499239,715.9,714.37,1.094]
[1737032645970,1.04499239,715.91,714.37,1.094]
[1737032647468,1.03889263,715.68,714.37,1.094]
[1737032648169,1.03889263,715.56,714.37,1.094]
[1737032649071,1.03889263,715.72,714.37,1.094]
[1737032650572,1.03889263,715.78,714.37,1.094]
[1737032651570,1.03889263,715.96,714.38,0.2570841]
[1737032652370,1.03889263,716.07,714.38,0.2570841]
[1737032653572,1.03889263,716.13,714.38,0.2570841]
[1737032654771,1.03889263,716.14,714.38,0.2570841]
[1737032655868,1.03889263,716.1,714.38,0.2570841]
[1737032656074,1.03889263,716.1,714.37,1.094]
[1737032656368,1.03889263,716.1,714.38,0.25704437]
[1737032656575,1.03889263,716.06,714.38,0.25704437]
[1737032656773,1.03889263,716.06,714.37,1.094]
[1737032656972,1.03889263,716.06,714.38,0.25704727]
[1737032657575,1.03889263,716.03,714.38,0.25704727]
[1737032658473,1.03889263,715.95,714.38,0.25704727]
[1737032658871,1.03889263,715.95,713.77,1.03966494]
[1737032659071,1.03889263,715.95,713.78,0.85406342]
[1737032659272,1.03889263,715.95,713.79,0.25711071]
[1737032659472,1.03889263,715.95,713.8,0.25711071]
[1737032659674,1.03889263,715.95,713.81,0.25711071]
[1737032659873,1.03889263,715.95,713.78,0.59695271]
[1737032659874,1.03889263,715.73,713.82,0.25711071]
[1737032660070,1.03889263,715.73,713.83,0.25711071]
[1737032660277,1.03889263,715.73,713.84,0.25711071]
[1737032660575,1.03889263,715.73,713.85,0.25711071]
[1737032660776,1.03889263,715.79,713.86,0.25711071]
[1737032660976,1.03889263,715.79,713.87,0.25711071]
[1737032661176,1.03889263,715.79,713.88,0.25711071]
[1737032661370,1.03889263,715.79,713.89,0.25711071]
[1737032661573,1.03889263,715.79,713.9,0.25711071]
[1737032661775,1.03889263,715.76,713.91,0.25711071]
[1737032661978,1.03889263,715.76,713.92,0.25711071]
[1737032662271,1.03889263,715.76,713.93,0.53725021]
[1737032662578,1.03889263,715.76,713.94,0.85406342]
[1737032662771,1.03889263,715.76,713.95,0.85406342]
[1737032662975,1.03889263,715.7,713.96,0.85406342]
[1737032663169,1.03889263,715.7,713.93,0.2801395]
[1737032663170,1.03889263,715.7,713.97,0.25711071]
[1737032663372,1.03889263,715.7,713.98,0.25711071]
[1737032663575,1.03889263,715.7,713.93,0.2801395]
[1737032663576,1.03889263,715.7,713.99,0.25711071]
[1737032663778,1.03889263,715.7,714.0,0.25711071]
[1737032664081,1.03889263,715.62,714.01,0.25711071]
[1737032664278,1.03889263,715.62,714.02,0.25711071]
[1737032664580,1.03889263,715.62,714.03,0.25711071]
[1737032664777,1.03889263,715.62,714.04,0.25711071]
[1737032665077,1.03889263,715.62,713.93,0.2801395]
[1737032665278,1.03889263,715.59,713.94,0.25715839]
[1737032667380,1.03889263,715.56,713.95,0.25714449]
[1737032667577,1.03889263,715.56,713.96,0.25714449]
[1737032667775,1.03889263,715.56,713.97,0.25714449]
[1737032667979,1.03889263,715.56,713.98,0.25714449]
[1737032668179,1.03889263,715.56,713.94,0.25714449]
[1737032668376,1.03889263,715.56,713.95,0.25713718]
[1737032668581,1.03889263,715.57,713.94,0.25713718]
[1737032668781,1.03889263,715.57,713.95,0.25713718]
[1737032668982,1.03889263,715.57,713.96,0.25713718]
[1737032669179,1.03889263,715.57,713.97,0.25713718]
[1737032669484,1.03889263,715.53,713.98,0.25713718]
[1737032669781,1.03889263,715.53,713.99,0.25713718]
[1737032669983,1.03889263,715.53,713.94,0.25713718]
[1737032670282,1.03889263,715.57,713.95,0.25713718]
[1737032670482,1.03889263,715.57,713.96,0.25713718]
[1737032670680,1.03889263,715.57,713.97,0.25713718]
[1737032670876,1.03889263,715.57,713.98,0.25713718]
[1737032671079,1.03889263,715.57,713.99,0.25713718]
[1737032671281,1.03889263,715.57,714.0,0.25713718]
[1737032671476,1.03889263,715.57,714.01,0.25713718]
[1737032671674,1.03889263,715.57,714.02,0.25713718]
[1737032671876,1.03889263,715.57,714.03,0.25713718]
[1737032672077,1.03889263,715.57,714.04,0.25713718]
[1737032672384,1.03889263,715.57,714.05,0.25713718]
[1737032672581,0.73014657,716.16,714.06,0.25713718]
[1737032672582,1.03889263,715.54,714.06,0.25713718]
[1737032672883,1.03889263,715.54,714.07,0.25715288]
[1737032673185,1.03889263,715.54,714.08,0.25715288]
[1737032673383,1.03889263,715.54,713.93,0.2801395]
[1737032673585,1.03889263,715.49,714.09,0.25715405]
[1737032673882,1.03889263,715.49,714.1,0.25715405]
[1737032674083,1.03889263,715.49,714.11,0.25715405]
[1737032674281,1.03889263,715.49,714.12,0.25715405]
[1737032674479,1.03889263,715.49,713.93,0.2801395]
[1737032674678,1.03889263,715.45,713.93,0.2801395]
[1737032675180,1.03889263,715.45,713.94,0.25722707]
[1737032675683,1.03889263,715.45,713.95,0.2572528]
[1737032675883,1.03889263,715.3,713.93,0.2801395]
[1737032676079,1.03889263,715.3,713.94,0.25728023]
[1737032676786,1.03889263,715.04,713.93,0.2801395]
[1737032676985,3.68262126,719.8,713.94,0.25725769]
[1737032677186,4.82309466,717.98,713.93,0.2801395]
[1737032677385,4.82309466,718.0,713.93,0.2801395]
[1737032677883,1.84094365,717.99,713.93,0.2801395]
[1737032678187,1.84094365,717.98,713.93,0.2801395]
[1737032678380,1.84023273,718.31,713.93,0.2801395]
[1737032678381,1.84094365,717.97,713.93,0.2801395]
[1737032678583,4.82309466,718.27,713.93,0.2801395]
[1737032678783,4.82309466,718.26,713.93,0.2801395]
[1737032679084,4.82309466,718.25,713.93,0.2801395]
[1737032679286,6.66332739,718.24,713.93,0.2801395]
[1737032679586,4.82309466,718.23,713.93,0.2801395]
[1737032679780,1.84023273,718.24,713.93,0.2801395]
[1737032679781,4.82309466,718.22,713.93,0.2801395]
[1737032679981,4.82309466,718.21,713.93,0.2801395]
[1737032680186,1.04213719,715.24,713.93,0.2801395]
[1737032680385,1.04213719,715.24,713.45,1.03940812]
[1737032680584,1.04213719,715.24,713.46,0.25727054]
[1737032680783,1.04213719,715.29,713.46,0.25727054]
[1737032681088,1.04213719,715.29,713.47,0.53759066]
[1737032681291,1.04213719,715.29,713.47,0.53759218]
[1737032681486,1.04213719,715.69,713.47,0.53759218]
[1737032681487,1.04213719,715.3,713.48,0.25727206]
[1737032681692,1.04213719,715.3,713.47,0.28032012]
[1737032682089,1.04213719,715.3,713.48,0.25730584]
[1737032682492,1.04213719,715.14,713.48,0.25730584]
[1737032683594,1.04213719,715.24,713.48,0.25730584]
[1737032683795,1.04213719,715.24,713.48,0.85579107]
[1737032683995,1.04213719,715.24,713.47,1.15232012]
[1737032684298,1.04213719,715.24,713.48,0.85564433]
[1737032684595,1.04213719,715.24,713.49,0.25727791]
[1737032684791,1.04213719,715.25,713.5,0.25727791]
[1737032684996,1.04213719,715.25,713.51,0.25727791]
[1737032685196,1.04213719,715.25,713.52,0.25727791]
[1737032685497,1.04213719,715.25,713.53,0.25727791]
[1737032685696,1.04213719,715.25,713.54,0.25727791]
[1737032685891,1.04213719,715.25,713.55,0.25727791]
[1737032686095,1.04213719,715.25,713.56,0.25727791]
[1737032686295,1.04213719,715.25,713.57,0.25727791]
[1737032686496,1.04213719,715.31,713.58,0.25727791]
[1737032686692,1.04213719,715.31,713.59,0.25727791]
[1737032686997,1.04213719,715.31,713.6,0.25728198]
[1737032687197,1.04213719,715.31,713.61,0.25728198]
[1737032687398,1.04213719,715.31,713.62,0.25728198]
[1737032687598,1.04213719,715.32,713.63,0.25728198]
[1737032687793,1.04213719,715.32,713.64,0.25728198]
[1737032688093,1.04213719,715.32,713.65,0.25728198]
[1737032688297,1.04213719,715.32,713.66,0.25728198]
[1737032688599,1.04213719,715.32,713.67,0.25728198]
[1737032688801,1.04213719,715.32,713.47,1.15232012]
[1737032688802,1.04213719,715.32,713.68,0.25728198]
[1737032689098,1.04213719,715.32,713.69,0.25728198]
[1737032689298,1.04213719,715.32,713.7,0.25728198]
[1737032689599,1.04213719,715.32,713.71,0.2572713]
[1737032689795,1.04213719,715.38,713.72,0.2572713]
[1737032690000,1.04213719,715.38,713.73,0.2572713]
[1737032690197,1.04213719,715.38,713.47,1.15232012]
[1737032690499,1.04213719,715.38,713.48,0.25727717]
[1737032690701,1.04213719,715.35,713.48,0.25727717]
[1737032692102,1.04213719,715.27,713.48,0.25727717]
[1737032692500,1.04213719,715.27,713.49,0.2573202]
[1737032692698,1.04213719,715.27,713.5,0.2573202]
[1737032692898,1.04213719,715.27,713.51,0.2573202]
[1737032693200,1.04213719,715.18,713.52,0.2573202]
[1737032693509,1.04213719,715.18,713.53,0.2573202]
[1737032693795,1.04213719,715.18,713.54,0.2573202]
[1737032694002,1.04213719,715.18,713.55,0.2573202]
[1737032694200,1.04213719,715.18,713.56,0.2573202]
[1737032694398,1.04213719,715.21,713.57,0.2573202]
[1737032694598,1.04213719,715.21,713.58,0.2573202]
[1737032694799,1.04213719,715.21,713.59,0.2573202]
[1737032695001,1.04213719,715.21,713.6,0.2573202]
[1737032695202,1.04213719,715.2,713.48,0.2573202]
[1737032695399,1.04213719,715.2,713.49,0.25732898]
[1737032695603,1.04213719,715.2,713.5,0.25732898]
[1737032695808,1.04213719,715.2,713.51,0.25732898]
[1737032696102,1.04213719,715.2,713.47,1.15232012]
[1737032696103,1.04213719,715.2,713.52,0.25732898]
[1737032696301,1.04213719,715.19,713.53,0.25732898]
[1737032696604,1.04213719,715.19,713.54,0.25732898]
[1737032696903,1.04213719,715.19,713.55,0.25732898]
[1737032697104,1.04213719,715.16,713.56,0.25732898]
[1737032697298,1.04213719,715.16,713.57,0.25732898]
[1737032697501,1.04213719,715.16,713.58,0.25732898]
[1737032697701,1.04213719,715.16,713.59,0.2573301]
[1737032697903,1.04213719,715.16,713.6,0.2573301]
[1737032698105,1.04213719,715.16,713.61,0.25734031]
[1737032698401,1.04213719,715.17,713.62,0.25734031]
[1737032698608,1.04213719,715.17,713.47,1.15232012]
[1737032698804,1.04213719,715.17,713.48,0.25738026]
[1737032699502,1.04213719,714.92,713.48,0.25738026]
[1737032700500,1.04213719,714.92,713.47,0.872]
[1737032701109,1.04213719,714.85,713.47,0.872]
[1737032702509,1.04213719,714.87,713.47,0.872]
[1737032703710,1.04213719,714.81,713.47,0.872]
[1737032704311,1.04213719,714.73,713.47,0.872]
[1737032705911,1.04213719,714.74,713.47,0.872]
[1737032706912,1.04213719,714.78,713.47,0.872]
[1737032707915,1.04213719,714.74,713.47,0.872]
[1737032708716,1.04213719,714.72,713.47,0.872]
[1737032710711,1.04213719,714.76,713.47,0.872]
[1737032716420,1.25056463,715.44,713.47,0.872]
[1737032716421,1.04213719,714.23,713.47,0.872]
[1737032717216,1.04213719,714.38,713.47,0.872]
[1737032718014,1.04213719,714.71,713.47,0.872]
[1737032718917,1.04213719,714.85,713.47,0.872]
[1737032719820,2.12769676,715.92,713.47,0.872]
[1737032719821,1.04213719,714.96,713.47,0.872]
[1737032720518,1.04213719,714.75,713.47,0.872]
[1737032721315,1.04213719,715.09,713.47,0.872]
[1737032722019,1.04213719,715.19,713.47,0.872]
[1737032723121,2.12769676,716.46,713.47,0.872]
[1737032723122,1.04213719,714.85,713.47,0.872]
[1737032724119,1.04213719,715.13,713.47,0.872]
[1737032725023,1.04213719,715.12,713.47,0.872]
[1737032726018,1.04213719,715.06,713.47,0.872]
[1737032727024,1.04213719,714.75,713.47,0.872]
[1737032728227,1.04213719,714.71,713.47,0.872]
[1737032729127,1.04213719,714.72,713.47,0.872]
[1737032730627,1.04213719,714.55,713.47,0.872]
[1737032731629,1.04213719,714.77,713.47,0.872]
[1737032732622,1.04213719,714.7,713.47,0.872]
[1737032733828,1.04213719,714.63,713.47,0.872]
[1737032734627,1.04213719,714.23,713.47,0.872]
[1737032735530,1.04213719,714.24,713.47,0.872]
[1737032736827,1.04213719,714.55,713.47,0.872]
[1737032737733,1.04213719,714.49,713.47,0.872]
[1737032738933,1.04213719,714.48,713.47,0.872]
[1737032739830,1.04213719,714.27,713.47,0.872]
[1737032741433,1.04213719,714.0,713.47,0.872]
[1737032741728,0.28011596,713.99,713.47,0.872]
[1737032742326,1.32225315,713.99,713.47,0.872]
[1737032743237,1.04213719,713.84,713.47,0.872]
[1737032744234,1.04213719,713.64,713.47,0.56514]
[1737032744534,1.04213719,713.64,712.16,1.03940812]
[1737032744733,1.04213719,713.64,712.17,0.85857092]
[1737032744933,1.04213719,713.53,712.21,1.03940812]
[1737032745233,1.04213719,713.53,712.22,0.85857092]
[1737032745427,1.04213719,713.53,712.23,0.25776901]
[1737032745631,1.04213719,713.53,712.24,0.25776901]
[1737032745833,1.04213719,713.53,712.25,0.25776901]
[1737032746032,1.04213719,713.56,712.26,0.25776901]
[1737032746232,1.04213719,713.56,712.27,0.25776901]
[1737032746428,1.04213719,713.56,712.28,0.25776901]
[1737032746633,1.04213719,713.56,712.29,0.25776901]
[1737032746833,1.04213719,713.56,712.3,0.25776901]
[1737032747131,1.04213719,713.56,712.31,0.25776901]
[1737032747335,1.04213719,713.59,712.32,0.25776901]
[1737032747535,1.04213719,713.59,712.33,0.25776901]
[1737032747737,1.04213719,713.59,712.34,0.25776901]
[1737032747935,1.04213719,713.59,712.35,0.25776901]
[1737032748130,1.04213719,713.59,711.99,1.03940812]
[1737032748131,1.04213719,713.6,712.36,0.25776901]
[1737032748330,1.04213719,713.6,712.37,0.25776901]
[1737032748532,1.04213719,713.6,712.38,0.25776901]
[1737032748733,1.04213719,713.6,712.35,0.25776901]
[1737032748934,1.04213719,713.6,712.36,0.25776901]
[1737032749134,1.04213719,713.6,712.37,0.25776901]
[1737032749336,1.04213719,713.61,712.38,0.25776901]
[1737032749535,1.04213719,713.61,712.35,0.25776901]
[1737032749734,1.04213719,713.61,712.36,0.25776901]
[1737032749936,1.04213719,713.61,712.37,0.25776901]
[1737032750135,1.04213719,713.61,712.38,0.25776901]
[1737032750337,1.04213719,713.62,712.39,0.25776901]
[1737032750538,1.04213719,713.62,712.4,0.25776901]
[1737032750741,1.04213719,713.62,712.41,0.25776901]
[1737032751039,1.04213719,713.62,712.42,0.25776901]
[1737032751231,1.04213719,713.62,712.43,0.25776901]
[1737032751431,0.731109,713.98,712.44,0.25776901]
[1737032751432,1.04213719,713.63,712.44,0.25776901]
[1737032751633,1.04213719,713.63,712.34,1.037]
[1737032751835,1.04213719,713.63,712.35,0.25780428]
[1737032752232,1.04213719,713.63,712.34,1.037]
[1737032752442,1.04213719,713.6,712.34,1.037]
[1737032753640,1.04213719,713.61,712.34,1.037]
[1737032754543,1.04213719,713.38,712.34,1.037]
[1737032755642,1.04213719,713.67,712.34,1.037]
[1737032756543,2.12769676,714.63,712.34,1.037]
[1737032756544,1.04213719,713.73,712.34,1.037]
[1737032757546,1.04213719,713.58,712.34,1.037]
[1737032758548,1.04213719,713.75,712.34,1.037]
[1737032759541,1.04213719,713.77,712.34,1.037]
[1737032760850,1.04213719,713.77,712.35,0.25783438]
[1737032761045,1.04213719,713.67,712.35,0.25783438]
[1737032762049,1.32225315,713.99,712.35,0.25783438]
[1737032764252,1.04213719,713.9,712.35,0.25783438]